[Event "Titled Tuesday Blitz April 18 Early 2023"]
[White "hsd2016"]
[Black "Garakov, Mikhael"]
[BlackFideId "4169034"]
[WhiteElo "2173"]
[BlackElo "2347"]
[Result "1-0"]
[Round "05"]
[TimeControl "180+2"]
[Date "2023.04.18"]
[WhiteClock "0:00:52"]
[BlackClock "0:00:04"]

1. e4 {[%clk 0:03:00]}  c5 {[%clk 0:02:59]} 2. Nf3 {[%clk 0:03:00]}  e6 {[%clk 0:02:59]} 3. d4 {[%clk 0:03:00]}  cxd4 {[%clk 0:02:58]} 4. Nxd4 {[%clk 0:03:01]}  Nc6 {[%clk 0:02:58]} 5. Nc3 {[%clk 0:03:01]}  Qc7 {[%clk 0:02:58]} 6. Be3 {[%clk 0:03:00]}  a6 {[%clk 0:02:58]} 7. f3 {[%clk 0:02:58]}  b5 {[%clk 0:02:55]} 8. a3 {[%clk 0:02:58]}  Bb7 {[%clk 0:02:53]} 9. Qd2 {[%clk 0:02:57]}  Rc8 {[%clk 0:02:53]} 10. Be2 {[%clk 0:02:56]}  Nf6 {[%clk 0:02:13]} 11. O-O {[%clk 0:02:54]}  Bd6 {[%clk 0:02:09]} 12. g3 {[%clk 0:02:50]}  Bxg3 {[%clk 0:02:00]} 13. hxg3 {[%clk 0:02:36]}  Qxg3+ {[%clk 0:01:58]} 14. Kh1 {[%clk 0:02:35]}  g5 {[%clk 0:01:54]} 15. Rf2 {[%clk 0:02:26]}  g4 {[%clk 0:01:41]} 16. Rg1 {[%clk 0:02:19]}  Qe5 {[%clk 0:01:29]} 17. Nxc6 {[%clk 0:02:10]}  Bxc6 {[%clk 0:01:26]} 18. Bd4 {[%clk 0:02:08]}  Qh5+ {[%clk 0:01:06]} 19. Rh2 {[%clk 0:02:07]}  Qg6 {[%clk 0:01:06]} 20. Qf4 {[%clk 0:02:07]}  Ke7 {[%clk 0:00:45]} 21. Rh6 {[%clk 0:02:01]}  Nh5 {[%clk 0:00:40]} 22. Qe3 {[%clk 0:01:52]}  f6 {[%clk 0:00:28]} 23. fxg4 {[%clk 0:01:32]}  e5 {[%clk 0:00:18]} 24. Rxg6 {[%clk 0:01:22]}  exd4 {[%clk 0:00:14]} 25. Qxd4 {[%clk 0:01:13]}  hxg6 {[%clk 0:00:15]} 26. gxh5 {[%clk 0:01:13]}  Rxh5+ {[%clk 0:00:16]} 27. Kg2 {[%clk 0:01:13]}  Rch8 {[%clk 0:00:16]} 28. Kf1 {[%clk 0:01:08]}  Rh4 {[%clk 0:00:14]} 29. Ke1 {[%clk 0:01:07]}  Rf4 {[%clk 0:00:13]} 30. Rf1 {[%clk 0:01:08]}  Rxf1+ {[%clk 0:00:11]} 31. Bxf1 {[%clk 0:01:07]}  Rh5 {[%clk 0:00:10]} 32. Be2 {[%clk 0:01:05]}  Re5 {[%clk 0:00:10]} 33. Qb6 {[%clk 0:01:03]}  f5 {[%clk 0:00:09]} 34. Qd4 {[%clk 0:01:00]}  d6 {[%clk 0:00:09]} 35. exf5 {[%clk 0:01:00]}  gxf5 {[%clk 0:00:09]} 36. Kf2 {[%clk 0:01:00]}  Ke6 {[%clk 0:00:08]} 37. Bf3 {[%clk 0:00:56]}  d5 {[%clk 0:00:05]} 38. Qb6 {[%clk 0:00:53]}  Kd6 {[%clk 0:00:06]} 39. Bxd5 {[%clk 0:00:50]}  Rxd5 {[%clk 0:00:04]} 40. Nxd5 {[%clk 0:00:51]}  Kxd5 {[%clk 0:00:04]} 41. Qxa6 {[%clk 0:00:52]} 1-0


[Site "https://www.chess.com"]

[Event "Titled Tuesday Blitz April 18 Early 2023"]
[White "Torres Dominguez, David"]
[Black "littlepillow2010"]
[WhiteFideId "2220857"]
[WhiteElo "1999"]
[BlackElo "2422"]
[Result "0-1"]
[Round "05"]
[TimeControl "180+2"]
[Date "2023.04.18"]
[WhiteClock "0:00:27"]
[BlackClock "0:00:07"]

1. e4 {[%clk 0:03:00]}  c5 {[%clk 0:02:59]} 2. Nc3 {[%clk 0:03:00]}  a6 {[%clk 0:02:53]} 3. Nf3 {[%clk 0:02:59]}  b5 {[%clk 0:02:53]} 4. d4 {[%clk 0:02:58]}  cxd4 {[%clk 0:02:53]} 5. Nxd4 {[%clk 0:02:59]}  Bb7 {[%clk 0:02:53]} 6. Bd3 {[%clk 0:02:59]}  d6 {[%clk 0:02:53]} 7. O-O {[%clk 0:02:59]}  Nf6 {[%clk 0:02:53]} 8. Qe2 {[%clk 0:02:54]}  Nbd7 {[%clk 0:02:52]} 9. f4 {[%clk 0:02:51]}  Qc7 {[%clk 0:02:51]} 10. a3 {[%clk 0:02:50]}  e5 {[%clk 0:02:46]} 11. Nf5 {[%clk 0:02:47]}  g6 {[%clk 0:02:29]} 12. Ng3 {[%clk 0:02:46]}  Bg7 {[%clk 0:02:21]} 13. f5 {[%clk 0:02:46]}  h6 {[%clk 0:02:01]} 14. fxg6 {[%clk 0:02:44]}  fxg6 {[%clk 0:02:01]} 15. Be3 {[%clk 0:02:31]}  O-O {[%clk 0:01:36]} 16. a4 {[%clk 0:02:26]}  b4 {[%clk 0:01:34]} 17. Bc4+ {[%clk 0:02:26]}  Kh7 {[%clk 0:01:32]} 18. Nb1 {[%clk 0:02:08]}  Nxe4 {[%clk 0:01:17]} 19. Nxe4 {[%clk 0:02:07]}  Bxe4 {[%clk 0:01:18]} 20. Nd2 {[%clk 0:02:05]}  Bb7 {[%clk 0:01:07]} 21. Qd3 {[%clk 0:01:39]}  Nc5 {[%clk 0:01:01]} 22. Bxc5 {[%clk 0:01:38]}  Qxc5+ {[%clk 0:01:02]} 23. Kh1 {[%clk 0:01:38]}  d5 {[%clk 0:00:51]} 24. Bb3 {[%clk 0:01:39]}  e4 {[%clk 0:00:49]} 25. Qh3 {[%clk 0:01:37]}  d4 {[%clk 0:00:39]} 26. Rae1 {[%clk 0:01:27]}  Rxf1+ {[%clk 0:00:30]} 27. Nxf1 {[%clk 0:01:26]}  Rf8 {[%clk 0:00:28]} 28. Ng3 {[%clk 0:01:20]}  d3 {[%clk 0:00:16]} 29. cxd3 {[%clk 0:01:16]}  exd3 {[%clk 0:00:17]} 30. Qd7 {[%clk 0:01:13]}  Bxg2+ {[%clk 0:00:07]} 31. Kxg2 {[%clk 0:01:10]}  Qf2+ {[%clk 0:00:08]} 32. Kh3 {[%clk 0:01:09]}  Qxe1 {[%clk 0:00:08]} 33. Qxd3 {[%clk 0:01:00]}  Rf4 {[%clk 0:00:05]} 34. Bc2 {[%clk 0:00:58]}  Qe6+ {[%clk 0:00:04]} 35. Kg2 {[%clk 0:00:56]}  Rd4 {[%clk 0:00:05]} 36. Qe2 {[%clk 0:00:27]}  Qxe2+ {[%clk 0:00:04]} 37. Nxe2 {[%clk 0:00:28]}  Rd2 {[%clk 0:00:05]} 38. Bxg6+ {[%clk 0:00:25]}  Kxg6 {[%clk 0:00:06]} 39. Kf3 {[%clk 0:00:26]}  Rxb2 {[%clk 0:00:05]} 40. Nf4+ {[%clk 0:00:26]}  Kf5 {[%clk 0:00:05]} 41. Nd3 {[%clk 0:00:25]}  Rb3 {[%clk 0:00:05]} 42. Ke2 {[%clk 0:00:26]}  Rxd3 {[%clk 0:00:06]} 43. Kxd3 {[%clk 0:00:27]}  b3 {[%clk 0:00:07]} 0-1


[Site "https://www.chess.com"]

[Event "Titled Tuesday Blitz April 18 Early 2023"]
[White "DeyanKostov"]
[Black "Saravana, Krishnan P."]
[BlackFideId "5018382"]
[WhiteElo "2329"]
[BlackElo "2189"]
[Result "1/2-1/2"]
[Round "05"]
[TimeControl "180+2"]
[Date "2023.04.18"]
[WhiteClock "0:00:08"]
[BlackClock "0:00:04"]

1. d4 {[%clk 0:03:00]}  Nf6 {[%clk 0:02:58]} 2. c4 {[%clk 0:03:00]}  g6 {[%clk 0:02:58]} 3. Nc3 {[%clk 0:02:59]}  Bg7 {[%clk 0:02:58]} 4. e4 {[%clk 0:02:59]}  d6 {[%clk 0:02:58]} 5. Nf3 {[%clk 0:03:00]}  O-O {[%clk 0:02:58]} 6. h3 {[%clk 0:03:00]}  e5 {[%clk 0:02:57]} 7. d5 {[%clk 0:03:00]}  a5 {[%clk 0:02:57]} 8. g4 {[%clk 0:02:59]}  Na6 {[%clk 0:02:56]} 9. Be3 {[%clk 0:02:59]}  Nd7 {[%clk 0:02:53]} 10. Rg1 {[%clk 0:02:58]}  Nac5 {[%clk 0:02:50]} 11. Be2 {[%clk 0:02:52]}  a4 {[%clk 0:02:47]} 12. Qc2 {[%clk 0:02:51]}  Nb6 {[%clk 0:02:39]} 13. h4 {[%clk 0:02:48]}  Kh8 {[%clk 0:02:36]} 14. h5 {[%clk 0:02:46]}  Bd7 {[%clk 0:02:27]} 15. O-O-O {[%clk 0:02:42]}  f5 {[%clk 0:01:44]} 16. gxf5 {[%clk 0:02:32]}  gxf5 {[%clk 0:01:43]} 17. h6 {[%clk 0:02:09]}  Bf6 {[%clk 0:01:42]} 18. exf5 {[%clk 0:02:09]}  a3 {[%clk 0:01:39]} 19. b3 {[%clk 0:02:07]}  e4 {[%clk 0:01:37]} 20. Nd4 {[%clk 0:02:03]}  Qe7 {[%clk 0:01:29]} 21. Rg2 {[%clk 0:01:51]}  Na6 {[%clk 0:01:22]} 22. Rdg1 {[%clk 0:01:46]}  Nb4 {[%clk 0:01:20]} 23. Qd2 {[%clk 0:01:44]}  Qe5 {[%clk 0:01:13]} 24. Kb1 {[%clk 0:01:16]}  Bxf5 {[%clk 0:01:11]} 25. Nxf5 {[%clk 0:01:08]}  Qxf5 {[%clk 0:01:07]} 26. Rg5 {[%clk 0:00:38]}  Qh3 {[%clk 0:00:41]} 27. Bd4 {[%clk 0:00:36]}  Nd7 {[%clk 0:00:19]} 28. R5g3 {[%clk 0:00:19]}  Qh4 {[%clk 0:00:18]} 29. Rg4 {[%clk 0:00:17]}  Qh2 {[%clk 0:00:16]} 30. R4g2 {[%clk 0:00:17]}  Qh3 {[%clk 0:00:16]} 31. Rg3 {[%clk 0:00:16]}  Qf5 {[%clk 0:00:16]} 32. Bg4 {[%clk 0:00:15]}  e3+ {[%clk 0:00:11]} 33. Bxf5 {[%clk 0:00:14]}  exd2 {[%clk 0:00:11]} 34. Bxf6+ {[%clk 0:00:11]}  Nxf6 {[%clk 0:00:11]} 35. Rd1 {[%clk 0:00:08]}  Ng8 {[%clk 0:00:11]} 36. Be6 {[%clk 0:00:07]}  Rxf2 {[%clk 0:00:10]} 37. Ne4 {[%clk 0:00:05]}  Re2 {[%clk 0:00:10]} 38. Nxd2 {[%clk 0:00:05]}  Nxh6 {[%clk 0:00:09]} 39. Rh3 {[%clk 0:00:05]}  Ng8 {[%clk 0:00:08]} 40. Rdh1 {[%clk 0:00:05]}  h6 {[%clk 0:00:08]} 41. R3h2 {[%clk 0:00:05]}  Rxh2 {[%clk 0:00:05]} 42. Rxh2 {[%clk 0:00:06]}  Rf8 {[%clk 0:00:04]} 43. Rh1 {[%clk 0:00:05]}  Kg7 {[%clk 0:00:04]} 44. Ne4 {[%clk 0:00:05]}  Nf6 {[%clk 0:00:04]} 45. Ng3 {[%clk 0:00:05]}  h5 {[%clk 0:00:02]} 46. Nf5+ {[%clk 0:00:04]}  Kh7 {[%clk 0:00:02]} 47. Ng3 {[%clk 0:00:03]}  h4 {[%clk 0:00:02]} 48. Nf5 {[%clk 0:00:04]}  Kg6 {[%clk 0:00:02]} 49. Rxh4 {[%clk 0:00:04]}  Kg5 {[%clk 0:00:02]} 50. Rh1 {[%clk 0:00:04]}  Ne4 {[%clk 0:00:02]} 51. Rg1+ {[%clk 0:00:04]}  Kf4 {[%clk 0:00:02]} 52. Rf1+ {[%clk 0:00:05]}  Ke5 {[%clk 0:00:02]} 53. Re1 {[%clk 0:00:02]}  Rxf5 {[%clk 0:00:02]} 54. Bxf5 {[%clk 0:00:02]}  Kxf5 {[%clk 0:00:02]} 55. Rf1+ {[%clk 0:00:02]}  Ke5 {[%clk 0:00:02]} 56. Re1 {[%clk 0:00:03]}  Kd4 {[%clk 0:00:03]} 57. Rd1+ {[%clk 0:00:04]}  Nd3 {[%clk 0:00:03]} 58. Rh1 {[%clk 0:00:05]}  Nc3+ {[%clk 0:00:03]} 59. Ka1 {[%clk 0:00:05]}  Nb4 {[%clk 0:00:03]} 60. Rh4+ {[%clk 0:00:06]}  Kc5 {[%clk 0:00:03]} 61. Rh2 {[%clk 0:00:06]}  c6 {[%clk 0:00:02]} 62. Rg2 {[%clk 0:00:05]}  cxd5 {[%clk 0:00:02]} 63. cxd5 {[%clk 0:00:06]}  Nbxd5 {[%clk 0:00:02]} 64. Rc2 {[%clk 0:00:07]}  b5 {[%clk 0:00:02]} 65. Rf2 {[%clk 0:00:06]}  b4 {[%clk 0:00:03]} 66. Rc2 {[%clk 0:00:07]}  Ne3 {[%clk 0:00:03]} 67. Rh2 {[%clk 0:00:08]}  d5 {[%clk 0:00:04]} 68. Rd2 {[%clk 0:00:08]}  d4 {[%clk 0:00:04]} 69. Rh2 {[%clk 0:00:09]}  d3 {[%clk 0:00:05]} 70. Rd2 {[%clk 0:00:09]}  Ne4 {[%clk 0:00:05]} 71. Rh2 {[%clk 0:00:10]}  Kd4 {[%clk 0:00:05]} 72. Rd2 {[%clk 0:00:09]}  Nc3 {[%clk 0:00:04]} 73. Rxd3+ {[%clk 0:00:08]}  Ke4 {[%clk 0:00:03]} 74. Rxe3+ {[%clk 0:00:08]}  Kxe3 {[%clk 0:00:04]} 1/2-1/2


[Site "https://www.chess.com"]

[Event "Titled Tuesday Blitz April 18 Early 2023"]
[White "Derichs, Roger"]
[Black "Grot, Blazej"]
[WhiteFideId "4630076"]
[BlackFideId "21835845"]
[WhiteElo "2328"]
[BlackElo "1823"]
[Result "0-1"]
[Round "05"]
[TimeControl "180+2"]
[Date "2023.04.18"]
[WhiteClock "0:00:41"]
[BlackClock "0:00:31"]

1. d4 {[%clk 0:03:00]}  Nf6 {[%clk 0:02:56]} 2. c4 {[%clk 0:03:00]}  g6 {[%clk 0:02:55]} 3. Nc3 {[%clk 0:02:59]}  d5 {[%clk 0:02:54]} 4. Nf3 {[%clk 0:02:59]}  Bg7 {[%clk 0:02:48]} 5. h3 {[%clk 0:03:00]}  O-O {[%clk 0:02:45]} 6. cxd5 {[%clk 0:03:00]}  Nxd5 {[%clk 0:02:43]} 7. e4 {[%clk 0:03:00]}  Nxc3 {[%clk 0:02:37]} 8. bxc3 {[%clk 0:03:01]}  c5 {[%clk 0:02:37]} 9. Be2 {[%clk 0:03:02]}  b6 {[%clk 0:02:31]} 10. O-O {[%clk 0:02:58]}  cxd4 {[%clk 0:02:27]} 11. cxd4 {[%clk 0:02:58]}  Bb7 {[%clk 0:02:25]} 12. Qd3 {[%clk 0:02:56]}  Ba6 {[%clk 0:02:21]} 13. Qe3 {[%clk 0:02:56]}  Bxe2 {[%clk 0:02:21]} 14. Qxe2 {[%clk 0:02:56]}  Bxd4 {[%clk 0:02:16]} 15. Rd1 {[%clk 0:02:53]}  Bxa1 {[%clk 0:02:12]} 16. Rxd8 {[%clk 0:02:49]}  Rxd8 {[%clk 0:02:13]} 17. Bg5 {[%clk 0:02:40]}  Nc6 {[%clk 0:02:07]} 18. e5 {[%clk 0:02:36]}  Rd5 {[%clk 0:02:02]} 19. e6 {[%clk 0:02:26]}  f6 {[%clk 0:02:01]} 20. Be3 {[%clk 0:02:25]}  Ne5 {[%clk 0:01:56]} 21. Nxe5 {[%clk 0:02:16]}  Bxe5 {[%clk 0:01:52]} 22. g3 {[%clk 0:02:15]}  Rad8 {[%clk 0:01:50]} 23. Qa6 {[%clk 0:02:07]}  Bd6 {[%clk 0:01:44]} 24. Qxa7 {[%clk 0:02:02]}  Ra5 {[%clk 0:01:43]} 25. Qxb6 {[%clk 0:01:57]}  Rda8 {[%clk 0:01:42]} 26. h4 {[%clk 0:01:52]}  Kg7 {[%clk 0:01:38]} 27. Kg2 {[%clk 0:01:44]}  Rxa2 {[%clk 0:01:33]} 28. h5 {[%clk 0:01:44]}  gxh5 {[%clk 0:01:29]} 29. Qb5 {[%clk 0:01:31]}  R2a5 {[%clk 0:01:24]} 30. Qe2 {[%clk 0:01:25]}  Re5 {[%clk 0:01:17]} 31. Qf3 {[%clk 0:01:23]}  Ra3 {[%clk 0:01:13]} 32. Kg1 {[%clk 0:01:10]}  Bc5 {[%clk 0:01:09]} 33. Qb7 {[%clk 0:01:05]}  Ra7 {[%clk 0:01:08]} 34. Qb8 {[%clk 0:00:59]}  Bxe3 {[%clk 0:01:03]} 35. fxe3 {[%clk 0:00:58]}  Ra1+ {[%clk 0:00:56]} 36. Kf2 {[%clk 0:00:56]}  Ra6 {[%clk 0:00:57]} 37. Kg2 {[%clk 0:00:52]}  Raxe6 {[%clk 0:00:56]} 38. Kh3 {[%clk 0:00:52]}  Rxe3 {[%clk 0:00:50]} 39. Qc8 {[%clk 0:00:50]}  R6e5 {[%clk 0:00:42]} 40. Qe8 {[%clk 0:00:48]}  Rg5 {[%clk 0:00:38]} 41. Kh4 {[%clk 0:00:47]}  Rgxg3 {[%clk 0:00:34]} 42. Kxh5 {[%clk 0:00:41]}  Re4 {[%clk 0:00:31]} 0-1


[Site "https://www.chess.com"]

[Event "Titled Tuesday Blitz April 18 Early 2023"]
[White "Vafin, Ayrat"]
[Black "Balint, Vilmos"]
[WhiteFideId "4146530"]
[BlackFideId "718050"]
[WhiteElo "2317"]
[BlackElo "2034"]
[Result "0-1"]
[Round "05"]
[TimeControl "180+2"]
[Date "2023.04.18"]
[WhiteClock "0:00:03"]
[BlackClock "0:00:51"]

1. Nf3 {[%clk 0:03:00]}  Nf6 {[%clk 0:02:48]} 2. g3 {[%clk 0:03:01]}  g6 {[%clk 0:02:47]} 3. Bg2 {[%clk 0:03:01]}  Bg7 {[%clk 0:02:48]} 4. O-O {[%clk 0:03:02]}  d6 {[%clk 0:02:49]} 5. c4 {[%clk 0:03:02]}  e5 {[%clk 0:02:49]} 6. d4 {[%clk 0:03:02]}  O-O {[%clk 0:02:50]} 7. dxe5 {[%clk 0:03:02]}  dxe5 {[%clk 0:02:51]} 8. Nxe5 {[%clk 0:02:58]}  Qxd1 {[%clk 0:02:49]} 9. Rxd1 {[%clk 0:02:58]}  Re8 {[%clk 0:02:49]} 10. Nf3 {[%clk 0:02:48]}  Rxe2 {[%clk 0:02:48]} 11. Rd8+ {[%clk 0:02:47]}  Re8 {[%clk 0:02:47]} 12. Rxe8+ {[%clk 0:02:45]}  Nxe8 {[%clk 0:02:48]} 13. Nc3 {[%clk 0:02:43]}  c6 {[%clk 0:02:43]} 14. Bf4 {[%clk 0:02:39]}  Be6 {[%clk 0:02:42]} 15. Bf1 {[%clk 0:02:33]}  Na6 {[%clk 0:02:37]} 16. Rd1 {[%clk 0:02:33]}  Nc5 {[%clk 0:02:34]} 17. Be5 {[%clk 0:02:31]}  a5 {[%clk 0:02:24]} 18. Bxg7 {[%clk 0:02:28]}  Kxg7 {[%clk 0:02:25]} 19. b3 {[%clk 0:02:24]}  Bg4 {[%clk 0:02:24]} 20. Bg2 {[%clk 0:02:19]}  Nc7 {[%clk 0:02:23]} 21. h3 {[%clk 0:02:18]}  Bxf3 {[%clk 0:02:21]} 22. Bxf3 {[%clk 0:02:19]}  N7a6 {[%clk 0:02:21]} 23. h4 {[%clk 0:02:04]}  Re8 {[%clk 0:02:21]} 24. h5 {[%clk 0:02:04]}  Re7 {[%clk 0:02:21]} 25. Rd8 {[%clk 0:02:02]}  Nb4 {[%clk 0:02:20]} 26. Ra8 {[%clk 0:01:35]}  Re1+ {[%clk 0:02:15]} 27. Kh2 {[%clk 0:01:30]}  Rc1 {[%clk 0:02:16]} 28. Ne4 {[%clk 0:01:28]}  Nca6 {[%clk 0:01:41]} 29. Nd6 {[%clk 0:01:12]}  Rc2 {[%clk 0:01:30]} 30. Nxb7 {[%clk 0:00:47]}  Rxf2+ {[%clk 0:01:30]} 31. Bg2 {[%clk 0:00:48]}  Nc7 {[%clk 0:01:29]} 32. Rxa5 {[%clk 0:00:45]}  Nxa2 {[%clk 0:01:28]} 33. Kg1 {[%clk 0:00:39]}  Rb2 {[%clk 0:01:27]} 34. Bxc6 {[%clk 0:00:29]}  Nc1 {[%clk 0:01:24]} 35. Nd6 {[%clk 0:00:23]}  Ne2+ {[%clk 0:01:25]} 36. Kf1 {[%clk 0:00:16]}  Nxg3+ {[%clk 0:01:25]} 37. Ke1 {[%clk 0:00:17]}  Nxh5 {[%clk 0:01:12]} 38. Ra7 {[%clk 0:00:16]}  Ne6 {[%clk 0:01:08]} 39. Rxf7+ {[%clk 0:00:16]}  Kh6 {[%clk 0:01:09]} 40. Bd5 {[%clk 0:00:16]}  Nhf4 {[%clk 0:01:06]} 41. Re7 {[%clk 0:00:06]}  Nd3+ {[%clk 0:01:05]} 42. Kd1 {[%clk 0:00:06]}  Nd4 {[%clk 0:01:02]} 43. Ne4 {[%clk 0:00:05]}  Nf5 {[%clk 0:00:51]} 44. Ra7 {[%clk 0:00:03]}  Ne3# {[%clk 0:00:51]} 0-1


[Site "https://www.chess.com"]

[Event "Titled Tuesday Blitz April 18 Early 2023"]
[White "Wisniacki, Flavio"]
[Black "Fuzesabonyilaci"]
[WhiteFideId "119229"]
[WhiteElo "2150"]
[BlackElo "2321"]
[Result "1/2-1/2"]
[Round "05"]
[TimeControl "180+2"]
[Date "2023.04.18"]
[WhiteClock "0:00:08"]
[BlackClock "0:00:06"]

1. Nf3 {[%clk 0:03:00]}  Nf6 {[%clk 0:02:37]} 2. c4 {[%clk 0:02:58]}  e6 {[%clk 0:02:36]} 3. g3 {[%clk 0:02:53]}  b6 {[%clk 0:02:36]} 4. Bg2 {[%clk 0:02:53]}  Bb7 {[%clk 0:02:37]} 5. O-O {[%clk 0:02:54]}  Be7 {[%clk 0:02:37]} 6. Nc3 {[%clk 0:02:51]}  c5 {[%clk 0:02:37]} 7. d4 {[%clk 0:02:50]}  d5 {[%clk 0:02:29]} 8. dxc5 {[%clk 0:02:47]}  Bxc5 {[%clk 0:02:27]} 9. cxd5 {[%clk 0:02:45]}  Nxd5 {[%clk 0:02:26]} 10. Nxd5 {[%clk 0:02:38]}  Bxd5 {[%clk 0:02:20]} 11. Qa4+ {[%clk 0:02:38]}  Qd7 {[%clk 0:02:16]} 12. Qxd7+ {[%clk 0:02:34]}  Nxd7 {[%clk 0:02:17]} 13. Rd1 {[%clk 0:02:34]}  O-O {[%clk 0:02:06]} 14. Nd4 {[%clk 0:02:15]}  Bxg2 {[%clk 0:02:00]} 15. Kxg2 {[%clk 0:02:14]}  Nf6 {[%clk 0:01:55]} 16. Nb5 {[%clk 0:02:11]}  a6 {[%clk 0:01:46]} 17. Nc3 {[%clk 0:02:08]}  Rfd8 {[%clk 0:01:44]} 18. Bg5 {[%clk 0:02:07]}  b5 {[%clk 0:01:41]} 19. Bxf6 {[%clk 0:01:35]}  gxf6 {[%clk 0:01:39]} 20. Ne4 {[%clk 0:01:36]}  Be7 {[%clk 0:01:39]} 21. Rac1 {[%clk 0:01:34]}  f5 {[%clk 0:01:36]} 22. Nc3 {[%clk 0:01:30]}  Rac8 {[%clk 0:01:35]} 23. a3 {[%clk 0:01:29]}  Bf6 {[%clk 0:01:34]} 24. Rxd8+ {[%clk 0:00:52]}  Rxd8 {[%clk 0:01:30]} 25. Rc2 {[%clk 0:00:52]}  Rc8 {[%clk 0:01:25]} 26. e3 {[%clk 0:00:29]}  a5 {[%clk 0:01:22]} 27. Rd2 {[%clk 0:00:29]}  Bxc3 {[%clk 0:01:21]} 28. bxc3 {[%clk 0:00:30]}  Rxc3 {[%clk 0:01:21]} 29. Rd8+ {[%clk 0:00:30]}  Kg7 {[%clk 0:01:20]} 30. Rb8 {[%clk 0:00:31]}  Rb3 {[%clk 0:01:13]} 31. h4 {[%clk 0:00:29]}  Rxa3 {[%clk 0:00:58]} 32. Rxb5 {[%clk 0:00:27]}  Ra2 {[%clk 0:00:57]} 33. Kf3 {[%clk 0:00:25]}  Kf6 {[%clk 0:00:54]} 34. Rb7 {[%clk 0:00:25]}  a4 {[%clk 0:00:54]} 35. Ra7 {[%clk 0:00:24]}  a3 {[%clk 0:00:51]} 36. Ra8 {[%clk 0:00:23]}  Ra1 {[%clk 0:00:48]} 37. Ra7 {[%clk 0:00:22]}  a2 {[%clk 0:00:48]} 38. Kg2 {[%clk 0:00:19]}  Ke5 {[%clk 0:00:47]} 39. Ra4 {[%clk 0:00:19]}  Kd5 {[%clk 0:00:47]} 40. Kh2 {[%clk 0:00:18]}  e5 {[%clk 0:00:42]} 41. Kg2 {[%clk 0:00:18]}  e4 {[%clk 0:00:42]} 42. Kh2 {[%clk 0:00:17]}  Kc5 {[%clk 0:00:42]} 43. Kg2 {[%clk 0:00:16]}  Kb5 {[%clk 0:00:42]} 44. Ra8 {[%clk 0:00:17]}  Kb4 {[%clk 0:00:35]} 45. Rb8+ {[%clk 0:00:17]}  Kc3 {[%clk 0:00:34]} 46. Rc8+ {[%clk 0:00:16]}  Kb2 {[%clk 0:00:23]} 47. Rb8+ {[%clk 0:00:16]}  Kc2 {[%clk 0:00:23]} 48. Rc8+ {[%clk 0:00:17]}  Kd2 {[%clk 0:00:23]} 49. Rd8+ {[%clk 0:00:17]}  Ke2 {[%clk 0:00:23]} 50. Ra8 {[%clk 0:00:17]}  Kd3 {[%clk 0:00:21]} 51. Rd8+ {[%clk 0:00:16]}  Kc4 {[%clk 0:00:21]} 52. Rc8+ {[%clk 0:00:16]}  Kb5 {[%clk 0:00:21]} 53. Ra8 {[%clk 0:00:17]}  h5 {[%clk 0:00:20]} 54. Kh2 {[%clk 0:00:16]}  Kb6 {[%clk 0:00:20]} 55. Kg2 {[%clk 0:00:16]}  Kb5 {[%clk 0:00:18]} 56. Ra7 {[%clk 0:00:15]}  Kb4 {[%clk 0:00:17]} 57. Ra8 {[%clk 0:00:13]}  Kb3 {[%clk 0:00:17]} 58. Rb8+ {[%clk 0:00:13]}  Kc2 {[%clk 0:00:16]} 59. Rc8+ {[%clk 0:00:14]}  Kd1 {[%clk 0:00:14]} 60. Rd8+ {[%clk 0:00:13]}  Ke2 {[%clk 0:00:14]} 61. Ra8 {[%clk 0:00:13]}  Kd3 {[%clk 0:00:10]} 62. Rd8+ {[%clk 0:00:12]}  Kc4 {[%clk 0:00:11]} 63. Rc8+ {[%clk 0:00:12]}  Kd5 {[%clk 0:00:11]} 64. Ra8 {[%clk 0:00:13]}  Ke5 {[%clk 0:00:11]} 65. Re8+ {[%clk 0:00:13]}  Kf6 {[%clk 0:00:11]} 66. Ra8 {[%clk 0:00:13]}  f4 {[%clk 0:00:09]} 67. exf4 {[%clk 0:00:10]}  Ke6 {[%clk 0:00:07]} 68. Ra5 {[%clk 0:00:09]}  f5 {[%clk 0:00:06]} 69. Ra8 {[%clk 0:00:08]}  Kd5 {[%clk 0:00:06]} 70. Ra7 {[%clk 0:00:08]}  Kd4 {[%clk 0:00:06]} 1/2-1/2


[Site "https://www.chess.com"]

[Event "Titled Tuesday Blitz April 18 Early 2023"]
[White "Novikova, Galina"]
[Black "Namitbir Singh Walia"]
[WhiteFideId "4157095"]
[BlackFideId "35071068"]
[WhiteElo "1953"]
[BlackElo "2239"]
[Result "1-0"]
[Round "05"]
[TimeControl "180+2"]
[Date "2023.04.18"]
[WhiteClock "0:00:21"]
[BlackClock "0:00:02"]

1. e4 {[%clk 0:02:56]}  c5 {[%clk 0:02:59]} 2. Nf3 {[%clk 0:02:56]}  Nc6 {[%clk 0:03:00]} 3. d4 {[%clk 0:02:57]}  cxd4 {[%clk 0:03:01]} 4. Nxd4 {[%clk 0:02:57]}  g6 {[%clk 0:03:01]} 5. Nc3 {[%clk 0:02:57]}  Nf6 {[%clk 0:03:02]} 6. Be3 {[%clk 0:02:58]}  Bg7 {[%clk 0:03:02]} 7. Nxc6 {[%clk 0:02:59]}  bxc6 {[%clk 0:03:01]} 8. e5 {[%clk 0:02:59]}  Nd5 {[%clk 0:03:02]} 9. Nxd5 {[%clk 0:02:59]}  cxd5 {[%clk 0:03:03]} 10. Qxd5 {[%clk 0:02:59]}  Rb8 {[%clk 0:03:04]} 11. O-O-O {[%clk 0:02:59]}  O-O {[%clk 0:02:36]} 12. f4 {[%clk 0:02:58]}  Qc7 {[%clk 0:02:29]} 13. Qc5 {[%clk 0:02:58]}  Qb7 {[%clk 0:02:21]} 14. b3 {[%clk 0:02:57]}  a6 {[%clk 0:01:33]} 15. Qxe7 {[%clk 0:02:31]}  Qe4 {[%clk 0:01:25]} 16. Qc5 {[%clk 0:02:12]}  d6 {[%clk 0:01:25]} 17. Qd4 {[%clk 0:02:09]}  Qb7 {[%clk 0:01:06]} 18. Qxd6 {[%clk 0:02:02]}  Bf5 {[%clk 0:01:05]} 19. Bd3 {[%clk 0:01:51]}  Bxd3 {[%clk 0:00:28]} 20. Qxd3 {[%clk 0:01:52]}  Qxg2 {[%clk 0:00:28]} 21. Qd2 {[%clk 0:01:49]}  Qc6 {[%clk 0:00:27]} 22. Kb1 {[%clk 0:01:48]}  Rfc8 {[%clk 0:00:25]} 23. Rhe1 {[%clk 0:01:42]}  a5 {[%clk 0:00:26]} 24. Bd4 {[%clk 0:01:38]}  a4 {[%clk 0:00:23]} 25. Bb2 {[%clk 0:01:38]}  axb3 {[%clk 0:00:21]} 26. cxb3 {[%clk 0:01:39]}  Qa6 {[%clk 0:00:16]} 27. Qd3 {[%clk 0:01:35]}  Qe6 {[%clk 0:00:16]} 28. f5 {[%clk 0:01:10]}  gxf5 {[%clk 0:00:15]} 29. Rg1 {[%clk 0:01:10]}  Kh8 {[%clk 0:00:12]} 30. Qd6 {[%clk 0:01:07]}  Re8 {[%clk 0:00:07]} 31. Qxe6 {[%clk 0:00:56]}  fxe6 {[%clk 0:00:06]} 32. Rd7 {[%clk 0:00:55]}  Rg8 {[%clk 0:00:06]} 33. Rc1 {[%clk 0:00:48]}  Rb5 {[%clk 0:00:04]} 34. Rcc7 {[%clk 0:00:48]}  f4 {[%clk 0:00:05]} 35. Bc1 {[%clk 0:00:30]}  f3 {[%clk 0:00:04]} 36. Be3 {[%clk 0:00:30]}  Rxe5 {[%clk 0:00:03]} 37. Rxg7 {[%clk 0:00:21]}  Rxg7 {[%clk 0:00:03]} 38. Bd4 {[%clk 0:00:21]}  Re1+ {[%clk 0:00:02]} 39. Kc2 {[%clk 0:00:21]}  f2 {[%clk 0:00:02]} 40. Rc8# {[%clk 0:00:21]} 1-0


[Site "https://www.chess.com"]